bitfinex/quotes_ETHUSD_20250518
["timestamp","ask_amount","ask_price","bid_price","bid_amount"]
[1747575609695,3.96904147,2519.5,2519.4,8.181]
[1747575610588,3.96982929,2519.0,2518.9,11.428]
[1747575610792,3.96973009,2519.1,2518.9,27.793]
[1747575610965,3.96904147,2519.5,2518.9,27.793]
[1747575611147,3.96982929,2519.0,2518.9,27.793]
[1747575611352,3.96982929,2519.0,2518.9,19.608]
[1747575611353,4.79782929,2519.0,2518.9,19.608]
[1747575611784,3.97061743,2518.5,2518.4,8.18]
[1747575612684,4.79877509,2518.4,2518.3,0.46627247]
[1747575612959,8.71414099,2518.4,2518.3,0.46627247]
[1747575613175,10.37966294,2518.4,2518.3,0.46627247]
[1747575613891,3.97109046,2518.2,2518.1,0.62169663]
[1747575614081,4.76079463,2517.5,2517.4,1.25160764]
[1747575614281,4.76079463,2517.5,2516.7,4.66301947]
[1747575614282,3.97314156,2516.9,2516.8,8.18]
[1747575614454,3.97311653,2517.0,2516.8,8.18]
[1747575614660,3.97314156,2516.9,2516.8,8.18]
[1747575614988,3.97252269,2517.3,2516.9,8.0]
[1747575615156,0.7886,2517.5,2516.8,8.18]
[1747575615357,0.7886,2517.5,2516.9,8.0]
[1747575615558,3.97235242,2517.4,2516.9,8.0]
[1747575615771,3.97235242,2517.4,2517.0,16.378]
[1747575615986,3.97235242,2517.4,2517.0,17.178]
[1747575616267,4.76085457,2517.5,2517.0,21.15095345]
[1747575616490,3.9719128,2517.7,2517.2,3.97259521]
[1747575616672,4.84512413,2517.7,2517.1,11.97275207]
[1747575616867,3.97207487,2517.6,2517.1,11.97275207]
[1747575617070,3.97217307,2517.6,2517.2,16.375]
[1747575617392,3.97211697,2517.6,2517.3,16.373]
[1747575617603,3.97206336,2517.6,2517.3,16.373]
[1747575617749,0.7886,2517.9,2517.3,16.373]
[1747575617955,3.97187951,2517.7,2517.3,16.373]
[1747575619191,0.87321452,2517.7,2517.3,16.373]
[1747575619398,3.97227573,2517.5,2517.3,16.373]
[1747575619610,3.97232623,2517.5,2517.3,16.373]
[1747575619898,3.97282587,2517.1,2517.0,0.8]
[1747575620411,3.9727551,2517.2,2517.0,0.8]
[1747575620760,14.02240358,2517.4,2517.0,0.8]
[1747575620761,3.97251054,2517.3,2517.0,0.8]
[1747575621305,10.05,2517.4,2517.0,0.8]
[1747575621661,3.97251697,2517.3,2517.0,0.8]
[1747575621997,10.05,2517.4,2517.0,0.8]
[1747575622162,11.52909546,2517.4,2517.0,0.8]
[1747575622380,10.05,2517.4,2517.0,0.8]
[1747575622617,14.02245482,2517.4,2517.0,0.8]
[1747575623418,3.97275034,2517.2,2517.0,0.8]
[1747575623727,3.97282587,2517.1,2517.0,8.984]
[1747575624811,3.97273427,2517.2,2517.0,8.984]
[1747575625179,3.97282587,2517.1,2517.0,0.8]
[1747575625728,14.85242587,2517.1,2517.0,0.8]
[1747575625888,3.97346488,2516.7,2516.4,16.327]
[1747575626213,3.9666626,2516.4,2516.3,11.427]
[1747575626520,3.97424688,2516.2,2516.1,8.169]
[1747575626813,3.97417381,2516.3,2516.1,8.169]
[1747575627215,0.8296,2516.4,2516.1,8.169]
[1747575627420,4.80355897,2516.4,2516.1,8.169]
[1747575627598,3.97408902,2516.3,2516.0,16.325]
[1747575627996,3.97389783,2516.5,2516.0,16.325]
[1747575628195,4.85582415,2516.5,2516.0,20.29954967]
[1747575628511,0.8717,2516.7,2516.1,8.9034]
[1747575628710,10.05,2516.8,2516.1,8.9034]
[1747575628907,14.02338867,2516.8,2516.3,3.97393988]
[1747575629217,10.05,2516.8,2516.4,3.97392153]
[1747575629433,10.05,2516.8,2516.5,8.17]
[1747575629989,10.05,2516.9,2516.5,16.314]
[1747575630187,3.97374799,2516.6,2516.1,4.8777669]
[1747575630427,3.97377921,2516.5,2516.0,3.97447436]
[1747575630606,3.97377921,2516.5,2516.2,8.157]
[1747575631193,3.97357163,2516.7,2516.2,12.13123693]
[1747575631422,3.97366928,2516.6,2516.2,8.157]
[1747575631725,4.76839337,2516.6,2516.2,8.157]
[1747575632024,3.97365325,2516.6,2516.2,8.157]
[1747575632237,3.97355638,2516.7,2516.2,8.157]
[1747575632527,3.97249049,2517.4,2516.9,3.97300246]
[1747575632725,3.97214748,2517.6,2517.0,16.344]
[1747575632939,3.97229036,2517.5,2517.0,20.31698277]
[1747575633428,3.97261579,2517.3,2517.0,16.344]
[1747575633592,0.8717,2517.7,2516.6,12.3282]
[1747575633926,3.97274699,2517.2,2516.7,24.338]
[1747575634117,3.97282919,2517.1,2516.7,24.338]
[1747575635093,3.97314029,2517.0,2516.7,16.338]
[1747575635289,4.87217684,2517.3,2516.7,16.338]
[1747575635290,3.9732682,2516.9,2516.7,16.332]
[1747575636107,3.97304622,2517.0,2516.7,16.332]
[1747575636516,3.97329942,2516.8,2516.7,8.161]
[1747575636699,0.79459265,2517.0,2516.6,19.607]
[1747575636899,0.8996,2517.3,2516.6,19.607]
[1747575637137,3.9734573,2516.7,2516.6,19.607]
[1747575637695,3.97275624,2517.2,2516.7,3.9733841]
[1747575637996,0.8996,2517.3,2516.6,19.607]
[1747575638202,3.97235485,2517.4,2516.9,3.97312416]
[1747575638551,3.97266866,2517.2,2517.0,8.17]
[1747575638723,3.97294349,2517.1,2516.8,16.337]
[1747575639038,3.97315282,2516.9,2516.7,16.345]
[1747575639232,0.8826,2517.3,2516.7,8.171]
[1747575639638,4.85518673,2517.3,2516.8,11.97326585]
[1747575640644,4.85514933,2517.3,2516.8,8.0]
[1747575640827,3.97219915,2517.5,2517.0,3.97290775]
[1747575641035,0.8826,2517.7,2517.1,8.168]
[1747575641204,3.97189459,2517.7,2517.2,12.14352398]
[1747575641409,3.97201826,2517.7,2517.2,8.171]
[1747575641958,10.05,2517.9,2517.4,0.9017]
[1747575642102,3.9282,2519.6,2517.4,0.9017]
[1747575642103,10.05,2518.3,2517.4,0.9017]
[1747575642347,10.05,2518.3,2517.2,8.46971815]
[1747575642348,3.97044986,2518.7,2518.1,4.87287167]
[1747575642539,0.88232174,2518.7,2518.3,3.97085317]
[1747575642759,3.97030386,2518.7,2518.2,16.357]
[1747575642967,0.8826,2519.2,2518.2,16.357]
[1747575643174,3.97000342,2518.9,2518.4,8.0]
[1747575643371,3.9701773,2518.8,2518.4,8.0]
[1747575643569,10.05,2519.4,2518.5,3.97058679]
[1747575643773,5.05658172,2519.3,2518.7,3.97021537]
[1747575643976,1.08709,2519.3,2518.9,3.96997352]
[1747575644154,1.08709,2519.3,2518.8,20.33606873]
[1747575644479,0.01,2519.7,2519.6,11.96888394]
[1747575644662,0.01,2519.7,2519.6,39.80488394]
[1747575644843,0.01,2519.7,2519.6,40.0235841]
[1747575645177,0.01,2519.7,2519.6,41.25896005]
[1747575645844,0.01,2519.7,2519.6,24.85796005]
[1747575646182,0.01,2519.7,2519.6,41.24596005]
[1747575646475,0.01,2519.7,2519.6,20.88907611]
[1747575646773,0.01,2519.7,2519.6,41.73325989]
[1747575646975,0.01,2519.7,2519.6,37.76337595]
[1747575647176,0.01,2519.7,2519.6,36.90937595]
[1747575647481,0.01,2519.7,2519.6,36.536]
[1747575647839,0.01,2519.7,2519.6,40.50488394]
[1747575648189,0.01,2519.7,2519.6,20.997]
[1747575648342,0.01,2519.7,2519.6,45.19523194]
[1747575649043,0.01,2519.7,2519.6,41.44188394]
[1747575649244,0.01,2519.7,2519.6,44.76078394]
[1747575649461,0.01,2519.7,2519.6,41.43888394]
[1747575649661,0.01,2519.7,2519.6,20.997]
[1747575649873,0.01,2519.7,2519.6,41.44388394]
[1747575650566,0.01,2519.7,2519.6,37.478]
[1747575650968,0.01,2519.7,2519.6,20.135]
[1747575651175,0.01,2519.7,2519.6,36.611]
[1747575651488,0.01,2519.7,2519.6,36.609]
[1747575651796,3.97872643,2519.7,2519.6,12.135]
[1747575651959,0.01,2519.7,2519.6,28.603]
[1747575652286,3.97872643,2519.7,2519.6,28.596]
[1747575652489,3.97872643,2519.7,2519.6,28.594]
[1747575652696,0.01,2519.7,2519.6,28.594]
[1747575652854,0.01,2519.7,2519.6,36.594]
[1747575655987,3.97872643,2519.7,2519.6,28.684]
[1747575656179,4.77345661,2519.7,2519.6,28.689]
[1747575656494,4.77345661,2519.7,2519.6,12.126]
[1747575656792,15.68795661,2519.7,2519.6,28.686]
[1747575657085,15.68795661,2519.7,2519.6,11.426]
[1747575657868,16.23795661,2519.7,2519.6,11.426]
[1747575658095,3.97014451,2518.8,2518.7,0.14579207]
[1747575658286,18.81461041,2518.8,2518.7,0.14579207]
[1747575658490,14.89924451,2518.8,2518.7,0.14579207]
[1747575658790,14.02014451,2518.8,2518.7,0.14579207]
[1747575659195,10.05,2518.8,2518.7,0.14579207]
[1747575659390,14.02014451,2518.8,2518.7,0.14579207]
[1747575659995,10.05,2518.8,2518.7,0.14579207]
[1747575660885,15.42214549,2518.8,2518.7,8.42579207]
[1747575661120,15.42214549,2518.8,2518.7,16.69679207]
[1747575662211,10.05,2518.8,2518.7,16.69679207]
[1747575662788,10.05,2518.8,2518.7,24.69679207]
[1747575662982,10.05,2518.8,2518.7,28.6670942]
[1747575663304,10.05,2518.8,2518.7,28.6780942]
[1747575663475,10.05,2518.8,2518.7,24.70779207]
[1747575664104,15.42212977,2518.8,2518.7,0.14579207]
[1747575664263,15.42212977,2518.8,2518.7,16.71379207]
[1747575664463,11.45198526,2518.8,2518.7,16.71379207]
[1747575664669,15.42212977,2518.8,2518.7,0.14579207]
[1747575664981,15.42212977,2518.8,2518.7,16.71179207]
[1747575665711,15.42212977,2518.8,2518.7,16.70379207]
[1747575666007,19.33749567,2518.8,2518.7,0.14579207]
[1747575666163,20.16399567,2518.8,2518.7,0.14579207]
[1747575666363,20.71399567,2518.8,2518.7,0.14579207]
[1747575666606,0.8265,2518.4,2518.0,16.587]
[1747575666904,3.97124816,2518.1,2518.0,16.587]
[1747575667218,3.97186179,2517.8,2517.4,11.425]
[1747575667444,3.97186179,2517.8,2517.5,16.583]
[1747575667934,3.97156691,2517.9,2517.5,16.583]
[1747575668101,3.97172249,2517.8,2517.5,16.583]
[1747575668301,3.97189399,2517.7,2517.5,16.583]
[1747575668496,3.97203686,2517.6,2517.4,11.425]
[1747575668718,3.97203686,2517.6,2517.5,16.574]
[1747575668972,3.97195786,2517.7,2517.5,16.574]
[1747575669265,1.62176794,2518.0,2517.5,16.574]
[1747575669468,5.59318747,2518.0,2517.5,16.574]
[1747575669666,1.62176794,2518.0,2517.5,16.574]
[1747575669827,10.05,2518.1,2517.8,4.8022357]
[1747575670168,2.22848526,2518.8,2518.0,8.0]
[1747575670347,10.05,2519.0,2518.5,3.97056359]
[1747575670551,14.01996922,2519.0,2518.6,28.011]
[1747575670749,14.01996922,2519.0,2518.7,8.0]
[1747575670949,3.96998778,2518.9,2518.7,8.0]
[1747575671121,3.97014451,2518.8,2518.6,28.011]
[1747575671463,4.970626,2518.8,2518.7,16.576]
[1747575671647,3.97014451,2518.8,2518.7,16.576]
[1747575672031,3.97014451,2518.8,2518.7,16.579]
[1747575672232,10.05,2519.0,2518.7,16.579]
[1747575673070,10.05,2519.0,2518.6,15.39841767]
[1747575673071,14.019859,2519.0,2518.8,16.577]
[1747575673235,10.05,2519.0,2518.8,16.577]
[1747575673430,14.01984399,2519.0,2518.8,16.577]
[1747575673757,10.05,2519.0,2518.8,16.577]
[1747575674258,0.8265,2519.6,2518.9,11.96998689]
[1747575674259,14.84540093,2519.6,2518.9,11.96998689]
[1747575674460,10.8765,2519.6,2519.0,8.0]
[1747575674671,3.96904147,2519.5,2518.7,8.0]
[1747575674825,3.96998689,2518.9,2518.8,16.582]
[1747575675437,3.96998689,2518.9,2518.4,8.8306]
[1747575675645,0.79398387,2518.9,2518.5,28.005]
[1747575675838,3.97045977,2518.6,2518.5,28.005]
[1747575676068,3.97045977,2518.6,2518.5,11.427]
[1747575676238,4.02009518,2518.6,2518.5,11.427]
[1747575676433,3.97172134,2517.8,2517.7,12.04929326]
[1747575676663,3.97172134,2517.8,2517.7,28.63229326]
[1747575676960,3.97082789,2518.4,2517.7,28.63829326]
[1747575677164,3.97155696,2518.0,2517.7,28.63829326]
[1747575677466,3.97161548,2517.9,2517.7,28.63829326]
[1747575677664,3.97148547,2518.0,2517.7,28.63829326]
[1747575678172,3.97129527,2518.1,2517.8,16.58]
[1747575678376,3.97148974,2518.0,2517.8,16.58]
[1747575678674,0.39708279,2518.3,2517.9,16.586]
[1747575678964,10.05,2518.4,2517.9,16.586]
[1747575679164,10.05,2518.4,2518.0,8.0]
[1747575679464,3.9707719,2518.5,2518.0,8.863]
[1747575679764,3.97077197,2518.5,2518.1,16.95824309]
[1747575679974,3.97077855,2518.4,2518.1,16.95824309]
[1747575680528,3.97109046,2518.2,2518.1,0.37424309]
[1747575680960,14.02109046,2518.2,2518.1,0.37424309]
[1747575681166,14.02109046,2518.2,2517.9,16.601]
[1747575681167,3.97140587,2518.0,2517.9,16.601]
[1747575682570,3.97172134,2517.8,2517.7,11.427]
[1747575682967,3.97172134,2517.8,2517.7,28.01]
[1747575684482,3.97172134,2517.8,2517.7,11.427]
[1747575684685,4.76605216,2517.8,2517.7,27.998]
[1747575685566,4.76605216,2517.8,2517.7,11.427]
[1747575685976,5.60145216,2517.8,2517.7,27.981]
[1747575686270,3.97251022,2517.3,2517.2,0.23464989]
[1747575686474,4.76699896,2517.3,2517.2,16.79164989]
[1747575686628,4.76699896,2517.3,2517.2,16.557]
[1747575686833,3.97298371,2517.0,2516.9,11.89780386]
[1747575687030,10.05,2517.0,2516.9,28.44880386]
[1747575687234,14.02298371,2517.0,2516.9,28.44880386]
[1747575688071,10.05,2517.0,2516.9,28.44880386]
[1747575688249,10.05,2517.0,2516.9,27.981]
[1747575689444,10.05,2517.0,2516.9,32.32928744]
[1747575689970,10.05,2517.0,2516.9,40.32928744]
[1747575690536,10.05,2517.0,2516.9,40.53610069]
[1747575692068,14.02211078,2517.6,2517.1,3.97279167]
[1747575692456,3.97220042,2517.5,2517.2,0.37514588]
[1747575692754,14.02215332,2517.6,2517.2,0.37514588]
[1747575692956,3.97242951,2517.4,2517.3,16.518]
[1747575693273,3.97251022,2517.3,2517.2,0.37514588]
[1747575693474,4.80231022,2517.3,2517.2,16.90214588]
[1747575693677,2.70863772,2517.6,2517.2,16.90214588]
[1747575693882,3.97197634,2517.7,2517.2,20.49958905]
[1747575694239,3.97205149,2517.6,2517.2,16.527]
[1747575694885,3.97282587,2517.1,2516.9,11.43]
[1747575695062,3.97275406,2517.2,2517.0,16.544]
[1747575695463,3.97282587,2517.1,2517.0,16.544]
[1747575695992,3.97273303,2517.2,2517.0,16.544]
[1747575696580,3.97282587,2517.1,2517.0,16.544]
[1747575696778,0.8298,2517.3,2517.0,16.544]
[1747575697148,3.97266804,2517.2,2517.0,16.544]
[1747575697349,3.97298371,2517.0,2516.9,11.43]
[1747575697550,0.87749262,2517.2,2516.9,27.953]
[1747575697779,0.87749262,2517.2,2516.9,11.43]
[1747575698083,0.87749262,2517.2,2517.0,16.521]
[1747575698261,4.85026798,2517.2,2517.0,16.521]
[1747575699090,3.97277536,2517.2,2517.0,16.521]
[1747575699475,3.97282587,2517.1,2517.0,16.521]
[1747575699674,3.97298371,2517.0,2516.9,11.43]
[1747575699863,3.97298371,2517.0,2516.9,27.936]
[1747575700398,3.97290115,2517.1,2516.9,27.936]
[1747575700693,4.80239258,2517.3,2516.9,27.936]
[1747575700895,3.9722621,2517.5,2516.9,27.936]
[1747575701079,3.97220366,2517.5,2517.0,3.97298371]
[1747575701699,3.97235104,2517.5,2517.0,3.97298371]
[1747575702962,3.97222425,2517.5,2517.0,3.97289994]
[1747575703365,3.97252244,2517.3,2517.1,16.49]
[1747575703814,3.97241755,2517.4,2517.1,16.49]
[1747575703979,5.85888208,2517.5,2517.1,16.49]
[1747575704297,3.97176976,2517.8,2517.3,3.97243861]
[1747575704462,3.97176976,2517.8,2517.2,11.97260234]
[1747575704996,0.79412813,2518.4,2517.4,0.8827]
[1747575705159,3.97054454,2518.6,2517.7,0.8827]
[1747575705367,3.97062614,2518.5,2518.0,3.97130125]
[1747575705580,3.97030213,2518.7,2518.1,11.434]
[1747575705793,3.97030213,2518.7,2518.2,3.97100418]
[1747575705995,3.97019276,2518.8,2518.3,20.46687789]
[1747575706178,0.04963217,2518.7,2518.3,16.496]
[1747575706383,4.02003225,2518.7,2518.3,16.496]
[1747575706584,3.97069377,2518.5,2518.3,16.496]
[1747575706876,0.04963683,2518.4,2518.1,11.434]
[1747575707094,3.97109046,2518.2,2518.1,11.434]
[1747575707267,3.97109046,2518.2,2518.1,27.93]
[1747575707666,0.8938,2518.7,2518.1,27.93]
[1747575708002,3.97060776,2518.6,2518.1,27.93]
[1747575708194,3.97076495,2518.5,2518.1,27.93]
[1747575708500,1.46349849,2518.7,2518.2,0.3753836]
[1747575708501,3.97089661,2518.4,2518.2,0.3753836]
[1747575708697,3.97093277,2518.3,2518.2,16.9053836]
[1747575708904,3.9708737,2518.4,2518.2,16.9053836]
[1747575709067,1.46349849,2518.7,2518.2,16.9053836]
[1747575709269,3.97077509,2518.4,2518.2,16.9053836]
[1747575709610,3.97063218,2518.5,2518.2,16.9053836]
[1747575709913,3.9706249,2518.5,2518.2,17.4334]
[1747575710302,3.97086745,2518.4,2518.2,0.9034]
[1747575710506,3.97086745,2518.4,2518.3,16.523]
[1747575711475,3.97109046,2518.2,2518.1,11.434]
[1747575713384,3.97109046,2518.2,2518.1,19.684]
[1747575714910,3.97172134,2517.8,2517.7,16.536]
[1747575716007,3.97163703,2517.9,2517.7,16.536]
[1747575716606,1.64023876,2518.4,2517.8,8.0]
[1747575716607,3.97110393,2518.2,2517.8,8.0]
[1747575716816,10.05,2518.6,2517.8,8.0]
[1747575716978,0.8332,2520.1,2519.1,8.0]
[1747575717172,0.8522,2520.5,2519.3,11.96934934]
[1747575717450,3.96781376,2520.3,2519.5,0.0167]
[1747575717677,0.8522,2520.5,2519.5,0.0167]
[1747575718012,3.97340222,2520.0,2519.5,0.0167]
[1747575718177,0.005,2520.0,2519.5,0.0167]
[1747575718381,3.97337283,2520.0,2519.5,0.0167]
[1747575718580,0.05460617,2520.0,2519.6,20.395]
[1747575718780,0.005,2520.0,2519.6,20.395]
[1747575719079,3.96847606,2519.9,2519.6,20.388]
[1747575719274,3.96858374,2519.8,2519.6,20.388]
[1747575719479,0.005,2520.0,2519.6,10.278]
[1747575719689,3.9684756,2519.9,2519.6,10.278]
[1747575719894,3.97327888,2520.0,2519.6,10.278]
[1747575720088,3.96847781,2519.9,2519.6,10.278]
[1747575720291,3.96841549,2519.9,2519.6,10.278]
[1747575720618,4.82068119,2519.9,2519.6,10.265]
[1747575721252,3.96861574,2519.8,2519.6,10.265]
[1747575721937,0.8522,2519.9,2519.6,10.265]
[1747575722151,0.8522,2519.9,2519.1,0.8438]
[1747575722152,3.97876804,2519.7,2519.1,0.8438]
[1747575722285,4.01865974,2519.6,2519.1,11.0808]
[1747575722494,0.4930968,2519.7,2519.1,11.0808]
[1747575722705,0.01,2519.7,2519.1,11.0808]
[1747575722991,3.97874299,2519.7,2519.1,15.05034543]
[1747575723193,0.01,2519.7,2519.1,11.0808]
[1747575723392,0.01,2519.7,2519.2,8.0]
[1747575723627,0.01,2519.7,2519.6,11.96888394]
[1747575724004,0.01,2519.7,2519.6,12.81268394]
[1747575725936,0.01,2519.7,2519.6,13.36268394]
[1747575726144,0.005,2520.0,2519.9,4.51841144]
[1747575726309,0.005,2520.0,2519.9,44.23628444]
[1747575726513,0.005,2521.3,2520.0,8.0]
[1747575726715,0.005,2521.3,2520.8,8.0]
[1747575727019,3.96637699,2521.2,2520.8,8.0]
[1747575727336,3.91622006,2521.3,2520.9,20.244]
[1747575727540,0.39162201,2521.3,2520.7,11.426]
[1747575727739,3.96690129,2520.9,2520.7,11.426]
[1747575727942,3.96676571,2521.0,2520.8,20.23]
[1747575728117,3.96683724,2520.9,2520.8,20.23]
[1747575728319,3.96655555,2521.1,2520.8,20.23]
[1747575728644,3.96641725,2521.2,2520.8,20.23]
[1747575729047,0.8522,2521.3,2520.7,11.426]
[1747575729209,3.96683724,2520.9,2520.8,20.196]
[1747575729404,3.9669946,2520.8,2520.7,11.426]
[1747575729610,3.96760275,2520.5,2520.2,10.093]
[1747575729833,3.96767838,2520.4,2520.2,10.093]
[1747575730042,3.96757195,2520.5,2519.9,12.57282368]
[1747575730245,0.8522,2521.3,2520.3,10.077]
[1747575730456,3.96792552,2520.3,2519.9,12.2698]
[1747575730757,3.96762418,2520.4,2520.0,8.0]
[1747575730911,3.96762418,2520.4,2520.0,28.187]
[1747575731108,3.96762418,2520.4,2520.0,8.0]
[1747575731339,3.9677423,2520.4,2520.1,20.173]
[1747575731850,3.96787159,2520.3,2520.1,20.173]
[1747575732010,3.9680965,2520.1,2520.0,8.0]
[1747575732210,3.96802556,2520.2,2520.0,20.157]
[1747575732411,3.9680965,2520.1,2520.0,20.157]
[1747575732611,3.96825396,2520.0,2519.9,19.426]
[1747575732855,3.96825396,2520.0,2519.9,31.572]
[1747575733211,3.96825396,2520.0,2519.9,11.426]
[1747575733441,4.76189092,2520.0,2519.9,21.466]
[1747575733667,4.76189092,2520.0,2519.9,11.426]
[1747575733952,3.96919901,2519.4,2519.3,10.039]
[1747575734527,3.96943012,2519.3,2519.1,11.422]
[1747575734712,3.9153659,2519.8,2519.1,11.422]
[1747575734917,3.96890705,2519.6,2519.2,10.015]
[1747575735137,3.96900011,2519.6,2519.2,10.015]
[1747575735347,3.96876906,2519.7,2519.2,10.015]
[1747575735844,0.8401,2519.9,2519.1,11.422]
[1747575736150,3.96882081,2519.7,2519.3,20.087]
[1747575736645,3.96915428,2519.5,2519.3,20.087]
[1747575736848,3.96919901,2519.4,2519.3,20.087]
[1747575737013,3.96895959,2519.6,2519.3,20.087]
[1747575737456,3.96888427,2519.6,2519.3,20.087]
[1747575737650,0.79363696,2520.0,2519.4,8.0]
[1747575737851,0.8401,2520.2,2519.4,8.0]
[1747575738040,3.96865499,2519.8,2519.4,8.0]
[1747575738223,3.96847425,2519.9,2519.4,8.0]
[1747575738427,0.8401,2520.2,2519.4,8.0]
[1747575738428,3.96890972,2519.6,2519.4,8.0]
[1747575738632,3.96856893,2519.8,2519.5,20.021]
[1747575738832,0.39685689,2519.8,2519.5,20.021]
[1747575739027,3.9680965,2520.1,2519.2,8.0]
[1747575739241,3.96888394,2519.6,2519.5,9.935]
[1747575740255,3.96935656,2519.3,2519.2,10.092]
[1747575740455,3.96935656,2519.3,2519.2,20.007]
[1747575740851,3.96951413,2519.2,2519.1,21.514]
[1747575741054,3.96947094,2519.3,2519.1,31.422]
[1747575741358,3.96951413,2519.2,2519.1,31.422]
[1747575741558,3.96951413,2519.2,2519.1,31.372]
[1747575741761,3.96943893,2519.3,2519.1,31.353]
[1747575742124,3.96899643,2519.6,2519.2,8.0]
[1747575742329,3.96899643,2519.6,2519.2,8.9057]
[1747575742555,3.9686596,2519.8,2519.3,3.96927661]
[1747575742965,3.96875296,2519.7,2519.2,12.87516245]
[1747575743322,3.96915702,2519.5,2519.3,19.952]
[1747575743655,3.96899573,2519.6,2519.3,19.952]
[1747575743867,3.9687271,2519.7,2519.4,8.0]
[1747575744226,3.96841312,2519.9,2519.4,11.96908243]
[1747575744670,3.96831647,2520.0,2519.4,11.96908243]
[1747575744885,0.8711,2520.2,2519.4,11.96908243]
[1747575744886,0.8711,2520.2,2519.7,3.96864737]
[1747575745046,3.96807356,2520.2,2519.6,11.9687728]
[1747575745369,3.96882277,2519.7,2519.2,8.9057]
[1747575745552,3.96825396,2520.0,2519.4,8.0]
[1747575745731,3.96850651,2519.9,2519.4,11.9691916]
[1747575745929,3.96858038,2519.8,2519.4,8.0]
[1747575746160,3.96844684,2519.9,2519.5,0.37348797]
[1747575746325,3.96863953,2519.8,2519.5,0.37348797]
[1747575746851,3.96849504,2519.9,2519.5,0.37348797]
[1747575747273,3.96849504,2519.9,2519.6,19.93448797]
[1747575747481,3.96849504,2519.9,2519.7,19.555]
[1747575747660,0.57465428,2520.2,2519.6,0.37348797]
[1747575747828,8.43270995,2520.6,2519.6,0.37348797]
[1747575747829,3.96851629,2519.9,2519.7,19.549]
[1747575748165,3.96832421,2520.0,2519.7,19.549]
[1747575748364,14.91262988,2520.5,2519.7,19.549]
[1747575748672,3.96795095,2520.2,2519.8,8.0]
[1747575748838,3.96778286,2520.3,2519.8,12.87709115]
[1747575749248,3.96781512,2520.3,2519.8,12.87709954]
[1747575749569,3.91781512,2520.3,2519.8,12.87709954]
[1747575749932,0.78855759,2520.2,2519.9,9.717]
[1747575750132,3.96825396,2520.0,2519.9,10.09095926]
[1747575750332,14.8604659,2520.5,2519.9,10.09095926]
[1747575750648,3.96825396,2520.0,2519.9,10.09095926]
[1747575750853,3.9681635,2520.1,2519.9,10.09095926]
[1747575752064,3.96825396,2520.0,2519.9,9.717]
[1747575752264,3.96847614,2519.9,2519.5,0.46780386]
[1747575752483,18.82806535,2520.5,2519.9,9.786]
[1747575752680,3.96825396,2520.0,2519.9,9.786]
[1747575754155,3.96818775,2520.1,2519.9,9.786]
[1747575754473,3.96811645,2520.1,2519.9,9.786]
[1747575754858,3.96825396,2520.0,2519.9,9.786]
[1747575756566,3.96865518,2519.8,2519.4,8.46780386]
[1747575756742,3.96850144,2519.9,2519.6,8.0]
[1747575757668,3.96778161,2520.3,2519.7,0.37465945]
[1747575757967,3.96824991,2520.1,2519.7,0.37465945]
[1747575758335,3.96828046,2520.0,2519.7,0.37465945]
[1747575758534,3.96845822,2519.9,2519.8,9.543]
[1747575759143,3.96820006,2520.1,2519.8,9.543]
[1747575759349,3.96832312,2520.0,2519.8,9.543]
[1747575759668,3.96832312,2520.0,2519.9,0.37465945]
[1747575760770,4.90953088,2520.0,2519.9,0.37465945]
[1747575760973,9.7126627,2520.0,2519.9,0.37465945]
[1747575761143,4.86048394,2519.6,2519.5,0.46780386]
[1747575761347,19.37584984,2519.6,2519.5,0.23390193]
[1747575761591,18.82584984,2519.6,2519.5,0.23390193]
[1747575762179,19.37584984,2519.6,2519.5,0.23390193]
[1747575762380,21.71031027,2519.6,2519.5,0.23390193]
[1747575762543,17.79494437,2519.6,2519.5,0.23390193]
[1747575762744,14.01888394,2519.6,2519.3,9.501]
[1747575762984,10.05,2519.6,2519.3,9.501]
[1747575763352,3.96907453,2519.5,2519.3,9.501]
[1747575763686,3.96907418,2519.5,2519.3,9.501]
[1747575763983,10.05,2519.6,2519.3,9.501]
[1747575764182,3.96854252,2519.9,2519.3,13.47027204]
[1747575764351,3.96820837,2520.1,2519.5,8.0]
[1747575764547,3.96842104,2519.9,2519.5,8.0]
[1747575764885,4.83365804,2520.2,2519.5,8.0]
[1747575765099,3.9680965,2520.1,2519.6,4.90496312]
[1747575765251,10.05,2520.3,2519.7,13.68352347]
[1747575765456,3.96805607,2520.2,2519.8,9.459]
[1747575765852,3.96815365,2520.1,2519.8,9.459]
[1747575766054,3.96856893,2519.8,2519.7,19.16187351]
[1747575766571,3.96856893,2519.8,2519.7,18.942]
[1747575767750,3.96888394,2519.6,2519.5,8.0]
[1747575767948,3.96888394,2519.6,2519.4,11.423]
[1747575768181,8.68130347,2520.0,2519.4,11.423]
[1747575768385,3.96858686,2519.8,2519.5,18.917]
[1747575768587,3.96858686,2519.8,2519.5,19.13693343]
[1747575768755,3.96847531,2519.9,2519.5,19.13693343]
[1747575768955,3.96842218,2519.9,2519.5,19.13693343]
[1747575769492,3.96848781,2519.9,2519.5,18.917]
[1747575769684,3.96832236,2520.0,2519.5,18.917]
[1747575770012,4.01754889,2520.2,2519.5,18.917]
[1747575770169,3.9683754,2520.0,2519.5,18.917]
[1747575770354,3.96845067,2519.9,2519.6,0.22003708]
[1747575770556,7.81513985,2520.2,2519.7,18.879]
[1747575770866,3.96872643,2519.7,2519.6,0.22003708]
[1747575771067,10.9048,2520.3,2519.7,3.96861929]
[1747575771269,3.96793905,2520.2,2519.6,18.871]
[1747575771469,3.96819046,2520.1,2519.6,18.871]
[1747575772071,3.96811181,2520.1,2519.6,18.871]
[1747575772288,3.96797274,2520.2,2519.6,18.871]